Cogmind - Beta 9.6 @@@ ROGUE MODE // 2020.06.25 @ 09:17:30 Player: Demise Result: Destroyed by 99-TNT with 99-TNT's Nukerbomber Performance ------------- Evolutions (1) 500 Regions Visited (6) 1200 Robots Destroyed (121) 605 Value Destroyed (1902) 1902 Prototype IDs (35) 700 Alien Tech Used (0) 0 Bonus (-1914) -1914 TOTAL SCORE: 2993 Bonus ------- Follower Combat Kills 58 Aligned with FarCom 300 Friendly Fire -2272 Cogmind --------- Core Integrity 0/400 Matter 33/300 Energy 100/100 System Corruption 0% Temperature Cool (0) Movement Walking (120) Location -8/Mines Parts ------- > --- POWER (1) -------- (None) > --- PROPULSION (2) --- Advanced Myomer Leg > --- UTILITY (4) ------ (None) > --- WEAPON (2) ------- (None) > --- INVENTORY (4) ---- AWS/Autocannon Peak State ------------ > --- POWER ------------ Heavy Ion Engine > --- PROPULSION ------- Improved Treads Advanced Myomer Leg > --- UTILITY ---------- Humpback Humpback > --- WEAPON ----------- High-powered Shotgun YI-UF0's Doublenader > --- INVENTORY -------- Advanced Heat Sink Experimental Heat Sink High-capacity Storage Unit High-capacity Storage Unit High-capacity Storage Unit Lightpack 2.0 Gravity Neutralizing Apparatus Gravity Neutralizing Apparatus Experimental Sensor Array Improved Signal Interpreter Improved Terrain Scan Processor Experimental Targeting Computer Advanced Weapon Cycler Hardened Medium Armor Plating Hardened Medium Armor Plating Hardened Medium Armor Plating 8R-AWN's Armor/EX EX Chip 1 EX Chip 1 EX Chip 1 EX Chip 1 EX Chip 1 EX Chip 1 EX Chip 2 EX Chip 2 EX Chip 2 EX Chip 2 EX Chip 2 EX Chip 2 EX Chip 2 EX Chip 2 Corruption Screen Advanced Recalibrator AS-neutralizer No. 17b AWS/Autocannon Mini Grenade Launcher Plasma Cutter Great Maul [Rating: 42] Favorites ----------- Power Heavy Ion Engine Engine Heavy Ion Engine Power Core Nuclear Core Propulsion Improved Treads Treads Improved Treads Leg Aluminum Leg Wheel Wheel Utility Hardened Medium Armor Plating Device Improved Heat Sink Storage High-capacity Storage Unit Processor Targeting Computer Protection Hardened Medium Armor Plating Weapon Flak Cannon Energy Gun Spread Laser Energy Cannon Heavy Particle Cannon Ballistic Gun Autogun Ballistic Cannon Flak Cannon Launcher Mini Grenade Launcher Special Weapon Plasma Cutter Impact Weapon Great Maul Build | -11 -10 -10 -9 -9 -9 -8 ------- Run | Scr Mat Min Mat Min Exi Min Slots Evolved 2 | . . . 2 . . . Power . | . . . . . . . Propulsion . | . . . . . . . Utility 2 | . . . 2 . . . Weapon . | . . . . . . . Parts Attached 102 | 7 29 1 23 16 24 2 Power 5 | . 2 1 1 . 1 . Engine 4 | . 2 . 1 . 1 . Core 1 | . . 1 . . . . Reactor . | . . . . . . . Propulsion 19 | 6 5 . 5 . 2 1 Treads 10 | . 4 . 5 . 1 . Leg 2 | . . . . . 1 1 Wheel 7 | 6 1 . . . . . Hover . | . . . . . . . Flight . | . . . . . . . Utility 28 | 1 5 . 6 3 13 . Device 7 | . 2 . 1 . 4 . Storage 10 | 1 2 . . 1 6 . Processor 1 | . 1 . . . . . Hackware . | . . . . . . . Protection 10 | . . . 5 2 3 . Artifact . | . . . . . . . Weapon 50 | . 17 . 11 13 8 1 Energy Gun 9 | . 4 . 4 1 . . Energy Cannon 8 | . 3 . 4 1 . . Ballistic Gun 12 | . 6 . 1 2 3 . Ballistic Cannon 4 | . . . . 3 1 . Launcher 5 | . . . . 4 . 1 Special Weapon 9 | . 4 . . 2 3 . Impact Weapon 3 | . . . 2 . 1 . Slashing Weapon . | . . . . . . . Piercing Weapon . | . . . . . . . Special Melee Weapon . | . . . . . . . Unidentified Prototypes 7 | . . . 2 2 3 . Parts Lost 19 | . 5 . 1 . 5 8 Power 1 | . . . . . . 1 Propulsion 4 | . 2 . . . . 2 Utility 4 | . . . . . 2 2 Weapon 10 | . 3 . 1 . 3 3 Highest Loss Streak 8 | . 2 . 1 . 5 8 Average Slot Usage (%) 95 | . 98 100 99 99 84 67 Engine 9 | . 14 11 5 11 11 11 Core 1 | . . 2 5 . . . Treads 22 | . 19 28 22 22 21 14 Wheel 1 | . 8 . . . . . Device 3 | . 2 . 7 1 2 . Storage 21 | . 19 28 22 22 20 19 Protection 10 | . . . 14 19 7 . Energy Gun 6 | . 7 28 10 . . . Energy Cannon 3 | . 3 . 10 1 . . Ballistic Gun 5 | . 15 . . 7 4 9 Ballistic Cannon 4 | . . . . 5 10 7 Special Weapon 1 | . 1 . . 1 4 . Naked Turns . | . . . . . . . Heaviest Build 178 | 15 57 61 80 84 178 177 Greatest Support 58 | 26 40 40 46 46 58 46 Greatest Overweight (x) 7 | . 4 1 3 1 7 3 Average Overweight (x) 1 | . 1 1 1 1 1 2 Largest Inventory Capacity 44 | 8 18 18 18 18 44 44 Average Capacity 21 | 7 14 18 18 18 31 39 Most Carried 44 | 8 18 18 18 18 44 44 Average Carried 19 | 7 13 17 17 17 26 38 Final Capacity 44 | 8 18 18 18 18 44 4 Final Carried 44 | 8 18 18 18 18 44 3 Class Distribution -------------------- 78% | Mutant 19% | Hauler-Mutant Dominant Class ---------------- Mutant | -10/Materials Mutant | -10/Mines Mutant | -9/Materials Mutant | -9/Mines Hauler-Mutant | -9/Exiles Hauler-Mutant | -8/Mines Resources | -11 -10 -10 -9 -9 -9 -8 ----------- Run | Scr Mat Min Mat Min Exi Min Matter Collected 3456 | 330 508 10 230 2130 225 23 Remotely . | . . . . . . . Salvage Created 3792 | 246 598 106 1237 1419 120 66 Parts 267 | 23 39 16 75 100 8 6 Haulers Intercepted 7 | . 2 . 5 . . . Recyclers Shooed 3 | 1 1 . . 1 . . Parts Field Recycled . | . . . . . . . Retrieved Matter . | . . . . . . . Parts Self-Destructed . | . . . . . . . Prevented . | . . . . . . . Kills | -11 -10 -10 -9 -9 -9 -8 ------- Run | Scr Mat Min Mat Min Exi Min Combat Hostiles Destroyed 68 | . 14 8 25 14 1 6 Guns 40 | . 12 8 13 3 . 4 Cannons 17 | . 1 . 10 3 1 2 AOE 8 | . . . . 8 . . Classes Destroyed 11 | 3 4 1 2 1 . . Worker 14 | 2 1 . . 11 . . Builder 9 | . . 1 . 8 . . Tunneler 9 | 5 . 1 . 3 . . Hauler 7 | . 2 . 5 . . . Recycler 9 | 1 1 . . 7 . . Operator 1 | . . . 1 . . . Watcher 3 | . 2 . 1 . . . Swarmer 36 | . 9 8 6 7 . 6 Grunt 25 | . 5 . 14 6 . . Duelist 1 | . . . . 1 . . Sentry 5 | . . . 5 . . . Best Kill Streak 6 | 4 3 3 4 6 1 3 Combat Bots Only 4 | . 3 3 4 4 1 3 Max Kills in Single Turn 4 | 1 1 2 2 4 1 1 Gunslinging . | . . . . . . . Exploded 4 | . . . . 4 . . Melee . | . . . . . . . Uniques/NPCs Destroyed 2 | . . . . 1 1 . YI-UF0 (-9/Mines) EX-HEX (-9/Exiles) EX-BIN (-9/Exiles) 8R-AWN (-9/Exiles) Combat | -11 -10 -10 -9 -9 -9 -8 -------- Run | Scr Mat Min Mat Min Exi Min Damage Taken 4272 | . 752 168 972 536 171 1673 Core 562 | . 87 32 89 49 . 305 Absorbed by Shields . | . . . . . . . Core Remaining (%) 76 | 100 . 52 . . . . Volleys Fired 583 | 20 75 14 69 134 255 16 Largest 2 | 2 2 2 2 2 2 2 Hottest 150 | 60 130 130 150 119 69 95 Shots Fired 792 | 40 128 28 136 171 261 28 Gun 362 | 40 96 28 67 110 5 16 Cannon 133 | . 28 . 69 21 6 9 Launcher 7 | . . . . 4 . 3 Special 290 | . 4 . . 36 250 . Kinetic 254 | 20 85 . . 113 11 25 Thermal 438 | . 12 28 103 45 250 . Explosive 7 | . . . . 4 . 3 Electromagnetic 93 | 20 31 . 33 9 . . Robot Hit Streak 16 | 6 8 4 15 16 16 4 Robot Miss Streak 10 | 2 5 10 5 4 3 4 Penetration Max . | . . . . . . . Secondary Targets . | . . . . . . . Shots Hit Robots 535 | 25 72 23 81 98 216 20 Core Hits 210 | 9 34 27 33 58 36 13 Critical Hits 38 | . 1 . . 4 32 1 Critical Kills 3 | . . . . 2 . 1 Critical Parts Destroyed 6 | . 1 . . 1 4 . Melee Attacks 11 | . . . 11 . . . Impact 11 | . . . 11 . . . Slashing . | . . . . . . . Piercing . | . . . . . . . Sneak Attacks . | . . . . . . . Combat Hostiles . | . . . . . . . Follow-up Attacks . | . . . . . . . Damage Inflicted 6850 | 388 1008 193 1885 2044 1080 252 Guns 3265 | 314 522 193 840 1104 102 190 Cannons 1782 | . 445 . 846 287 153 51 Explosions 541 | 74 30 . . 426 . 11 Melee 199 | . . . 199 . . . Ramming 12 | . 11 . . 1 . . Kinetic 2246 | 118 428 . . 1204 255 241 Thermal 2866 | 74 100 193 1365 309 825 . Explosive 437 | . . . . 426 . 11 Electromagnetic 1090 | 196 469 . 321 104 . . Impact 199 | . . . 199 . . . Slashing . | . . . . . . . Piercing . | . . . . . . . Highest Corruption . | . . . . . . . Average Corruption . | . . . . . . . Corruption Purged . | . . . . . . . Overload Shots . | . . . . . . . Overflow Damage 117 | 2 8 . 103 4 . . Projectiles 46 | . 8 . 34 4 . . Explosions 2 | 2 . . . . . . Melee 69 | . . . 69 . . . Knockbacks 13 | . . . 2 5 1 5 Impact 2 | . . . 2 . . . Kinetic 11 | . . . . 5 1 5 Secondary . | . . . . . . . Self-Inflicted Damage 64 | . 10 . . 54 . . Shots 3 | . 1 . . 2 . . Rammed 3 | . 1 . . 2 . . Targets Rammed 3 | . 1 . . 2 . . Kicked . | . . . . . . . Crushed . | . . . . . . . Highest Temperature 456 | 20 138 376 456 316 . 81 Average Temperature 77 | 15 37 139 91 57 . 18 Received Heat Transfer 705 | . 156 . 357 192 . . Effects 5 | . . 2 2 1 . . Shutdowns 1 | . . . 1 . . . Energy Bleed 2 | . . 1 1 . . . Interference 1 | . . 1 . . . . Short Circuit 1 | . . . . 1 . . Siege Activations . | . . . . . . . Robots Corrupted 1 | . 1 . . . . . Combat Hostiles 1 | . 1 . . . . . Parts Fried 4 | . 2 . 2 . . . Impact Corruptions 4 | . . . 4 . . . Robots Melted . | . . . . . . . Combat Hostiles . | . . . . . . . Parts Melted 2 | . . . 2 . . . Heat Transferred 5973 | 100 180 245 2479 962 2007 . Parts Sabotaged . | . . . . . . . Parts Stolen . | . . . . . . . Parts Stripped . | . . . . . . . Power Chain Reactions 2 | 1 1 . . . . . Missiles Intercepted . | . . . . . . . Alert | -11 -10 -10 -9 -9 -9 -8 ------- Run | Scr Mat Min Mat Min Exi Min Peak Influence 284 | 40 208 190 284 195 . 140 Average Influence 76 | 21 82 36 88 76 . 95 Maximum Alert Level 1 | . 1 . 1 . . . Low Security (%) 97 | 100 95 100 95 100 . 100 Level 1 2 | . 4 . 4 . . . Level 2 . | . . . . . . . Level 3 . | . . . . . . . Level 4 . | . . . . . . . Level 5 . | . . . . . . . High Security . | . . . . . . . Max Security . | . . . . . . . Squads Dispatched 11 | . 5 1 4 1 . . Investigation 8 | . 5 1 2 . . . Extermination . | . . . . . . . Reinforcement 3 | . . . 2 1 . . Assault . | . . . . . . . Garrison . | . . . . . . . Intercept . | . . . . . . . Construction Impeded 1 | . . . . 1 . . Haulers Reinforced . | . . . . . . . Stealth | -11 -10 -10 -9 -9 -9 -8 --------- Run | Scr Mat Min Mat Min Exi Min Distress Signals 3 | . 1 . 2 . . . Communications Jammed . | . . . . . . . Distress Signals . | . . . . . . . Times Spotted 117 | . 25 9 51 14 8 10 Peak Tracking Total 9 | . 3 3 5 4 9 6 Tactical Retreats 12 | . 3 . 9 . . . Traps | -11 -10 -10 -9 -9 -9 -8 ------- Run | Scr Mat Min Mat Min Exi Min Traps Triggered 4 | . 2 . 2 . . . Indirectly . | . . . . . . . Trap Hack Attempts . | . . . . . . . Triggered . | . . . . . . . Disarmed 6 | . . . 6 . . . Reprogrammed . | . . . . . . . Reused . | . . . . . . . Traps Extracted . | . . . . . . . Installed . | . . . . . . . Triggered . | . . . . . . . Machines | -11 -10 -10 -9 -9 -9 -8 ---------- Run | Scr Mat Min Mat Min Exi Min Machines Disabled 11 | . 3 . 3 3 1 1 Max in Single Turn 1 | . 1 . 1 1 . 1 Machines Sabotaged . | . . . . . . . Garrisons Compromised . | . . . . . . . Overloaded Fab Kills . | . . . . . . . Fab Network Shutdowns . | . . . . . . . Hacking | -11 -10 -10 -9 -9 -9 -8 --------- Run | Scr Mat Min Mat Min Exi Min Machines Accessed 23 | . 9 1 11 . 2 . Terminals 14 | . 6 . 8 . . . Fabricators . | . . . . . . . Repair Stations 3 | . 1 . 2 . . . Recycling Units 3 | . 2 . 1 . . . Scanalyzers . | . . . . . . . Garrison Access . | . . . . . . . Total Hacks 75 | . 30 1 42 . 2 . Successful 43 | . 14 1 26 . 2 . Failed 31 | . 15 . 16 . . . Catastrophic 3 | . 2 . 1 . . . Database Lockouts 1 | . 1 . . . . . Manual 52 | . 23 . 28 . 1 . Terminals 58 | . 21 . 37 . . . Fabricators . | . . . . . . . Repair Stations 9 | . 5 . 4 . . . Recycling Units 5 | . 4 . 1 . . . Scanalyzers . | . . . . . . . Garrison Access . | . . . . . . . Terminal Hacks 17 | . 3 1 11 . 2 . Record 1 | . . . . . 1 . Part Schematic 3 | . 1 . 2 . . . Prototype ID Bank 3 | . 1 . 2 . . . Open Door 1 | . . 1 . . . . Terminal Index 1 | . . . 1 . . . Unreport Threat 2 | . . . 2 . . . Locate Traps 1 | . . . 1 . . . Disarm Traps 1 | . . . 1 . . . Recall Investigation 1 | . 1 . . . . . Zone Layout 2 | . . . 2 . . . EX-Prototype ID Bank 1 | . . . . . 1 . Fabricator Hacks . | . . . . . . . Repair Station Hacks 8 | . 4 . 4 . . . Scan Component 4 | . 2 . 2 . . . Repair 4 | . 2 . 2 . . . Recycling Unit Hacks . | . . . . . . . Scanalyzer . | . . . . . . . Garrison Access Hacks . | . . . . . . . Unauthorized Hacks 18 | . 7 . 11 . . . Terminals 16 | . 6 . 10 . . . Track 5 | . 1 . 4 . . . Assimilate 2 | . 1 . 1 . . . Botnet 7 | . 3 . 4 . . . Operators 2 | . 1 . 1 . . . Fabricators . | . . . . . . . Repair Stations . | . . . . . . . Recycling Units 2 | . 1 . 1 . . . Tunnel 2 | . 1 . 1 . . . Scanalyzers . | . . . . . . . Garrison Access . | . . . . . . . Data Cores Recovered . | . . . . . . . Used . | . . . . . . . Hacking Detections 17 | . 8 . 9 . . . Full Trace Events 4 | . 3 . 1 . . . Feedback Events . | . . . . . . . Feedback Blocked . | . . . . . . . Robot Schematics Acquired . | . . . . . . . Robots Built . | . . . . . . . Matter . | . . . . . . . Time . | . . . . . . . Total Robot Build Rating . | . . . . . . . Part Schematics Acquired 3 | . 1 . 2 . . . Parts Built . | . . . . . . . Matter . | . . . . . . . Time . | . . . . . . . Total Part Build Rating . | . . . . . . . Parts Repaired 4 | . 2 . 2 . . . Time 128 | . 52 . 76 . . . Parts Recycled . | . . . . . . . Recycled Matter . | . . . . . . . Retrieved Matter . | . . . . . . . Retrieved Components . | . . . . . . . Parts Scanalyzed . | . . . . . . . Part Schematics Acquired . | . . . . . . . Parts Damaged . | . . . . . . . Bothacking | -11 -10 -10 -9 -9 -9 -8 ------------ Run | Scr Mat Min Mat Min Exi Min Used RIF Installer . | . . . . . . . Robots Hacked . | . . . . . . . Non-combat . | . . . . . . . Combat . | . . . . . . . Robot Hacks Applied . | . . . . . . . Relay Couplers Released . | . . . . . . . Robots Rewired . | . . . . . . . Allies Hacked . | . . . . . . . Hacks Repelled . | . . . . . . . Allies | -11 -10 -10 -9 -9 -9 -8 -------- Run | Scr Mat Min Mat Min Exi Min Total Allies 4 | . 1 3 . . . . Largest Group 3 | . 1 3 3 . . . Highest-Rated Group 40 | . 10 40 40 . . . Highest-Rated Ally 16 | . 10 16 16 . . . Total Orders . | . . . . . . . Ally Attacks 54 | . . . 42 . 12 . Total Damage 1105 | . . . 486 . 619 . Kills 15 | . . . 6 . 9 . Allies Corrupted . | . . . . . . . Allies Melted . | . . . . . . . Turrets Deployed 3 | . . . . . 3 . Intel | -11 -10 -10 -9 -9 -9 -8 ------- Run | Scr Mat Min Mat Min Exi Min Robot Analysis Total . | . . . . . . . Derelict Logs Recovered 3 | . . 1 . 2 . . Drone Launches . | . . . . . . . Drone Recoveries . | . . . . . . . Exploration | -11 -10 -10 -9 -9 -9 -8 ------------- Run | Scr Mat Min Mat Min Exi Min Turns Passed 10864 | 180 1614 868 2873 2375 2865 89 Spaces Moved 4817 | 120 825 451 1288 1112 1001 20 Core . | . . . . . . . Treads 4350 | . 483 451 1288 1112 1001 15 Legs 13 | 8 . . . . . 5 Wheels 454 | 112 342 . . . . . Hover . | . . . . . . . Flight . | . . . . . . . Fastest Speed 80 | 80 80 180 180 180 160 120 Average Speed 175 | 82 147 180 180 180 195 204 Slowest Speed 300 | 120 180 180 220 180 300 220 Overloaded Moves . | . . . . . . . Propulsion Burnouts . | . . . . . . . Robots Hopped . | . . . . . . . Cave-ins Triggered . | . . . . . . . Exploration Rate (%) 65 | 4 91 98 88 98 69 11 Regions Visited 6 Branch Regions 4 Pre-discovered Areas 3 | . 1 . 1 . 1 . Known Exits Taken . | . . . . . . . Unknown Exits Taken 6 | 1 1 1 1 1 1 . Scrap Searched 3 | . . 1 . 2 . . Spaces Dug 8 | . 3 . 5 . . . Terrain Destroyed 69 | . 4 . 14 32 . 19 Melee 5 | . . . 5 . . . Projectile 13 | . 4 . 9 . . . AOE 51 | . . . . 32 . 19 Actions | -11 -10 -10 -9 -9 -9 -8 --------- Run | Scr Mat Min Mat Min Exi Min Total 6190 | 169 1101 485 1690 1297 1408 40 Wait 417 | 3 124 3 260 18 7 2 Move 4811 | 119 824 450 1287 1111 1000 20 Hop . | . . . . . . . Pick Up 133 | 7 24 8 16 5 73 . Fast Attach 45 | 4 11 1 12 4 13 . Attach 16 | . 6 . 3 2 3 2 Detach 13 | 2 6 . . 2 3 . Swap 41 | 3 12 . 8 10 8 . Drop 117 | 11 18 9 24 9 46 . Fire 583 | 20 75 14 69 134 255 16 Melee 11 | . . . 11 . . . Ram . | . . . . . . . Kick . | . . . . . . . Crush 3 | . 1 . . 2 . . Escape Stasis . | . . . . . . . Rewire . | . . . . . . . Trap . | . . . . . . . Miscellaneous . | . . . . . . . Route ------- -11/Scrapyard -10/Materials (discovered 4 exits: *Mat x3 / *Min) -10/Mines (discovered 2 exits: *Mat x2) -9/Materials (discovered 5 exits: *Mat x3 / [*Min x2]) -9/Mines (discovered 3 exits: *Mat x2 / *Exi) -9/Exiles -8/Mines History --------- Turn | Location | Event 10 | -11/Scrapyard | Discovered new exit (range 3) 181 | -11/Scrapyard | Entered Materials 322 | -10/Materials | Build established: Mutant 452 | -10/Materials | Discovered new exit (range 8) 609 | -10/Materials | Discovered new exit (range 8) 804 | -10/Materials | Discovered new exit (range 9) 1150 | -10/Materials | Discovered new exit (range 12) 1402 | -10/Materials | Central database locked down 1489 | -10/Materials | Repaired Lgt. Ion Engine 1516 | -10/Materials | Repaired Lgt. Assault Rifle 1795 | -10/Materials | Entered Mines 1830 | -10/Mines | Discovered new exit (range 6) 1959 | -10/Mines | Learned location of 1 exit from Materials 2129 | -10/Mines | Discovered new exit (range 7) 2486 | -10/Mines | Met a Derelict shopkeep closing up shop 2564 | -10/Mines | Assisted by bots powering up and referring to "LRC-V3" 2663 | -10/Mines | Entered Materials 2663 | -9/Materials | Accompanied by 3 allies 2663 | -9/Materials | Evolved 2 slots: Utility x2 2664 | -9/Materials | Identified exit to Materials 2974 | -9/Materials | Discovered exit to Materials (range 10) 3435 | -9/Materials | Discovered new exit (range 14) 3860 | -9/Materials | Repaired Hrd. Medium Armor Plating 3980 | -9/Materials | Discovered exit to Materials (range 15) 4214 | -9/Materials | Discovered new exit (range 14) 4526 | -9/Materials | Repaired Hrd. Medium Armor Plating 5536 | -9/Materials | Entered Mines 5622 | -9/Mines | Learned location of 2 exits from Materials 5741 | -9/Mines | Assisted by bots powering up and referring to "LRC-V3" 5838 | -9/Mines | Discovered exit to Materials (range 8) 5856 | -9/Mines | Deemed a non-threat by the Exiles lab entrance 5856 | -9/Mines | Discovered new exit (range 5) 6081 | -9/Mines | Destroyed YI-UF0 6093 | -9/Mines | Found Prototype Storage 6093 | -9/Mines | Identified YI-UF0's Bottomless Matter Pit 6103 | -9/Mines | Found Prototype Launcher 6105 | -9/Mines | Identified YI-UF0's Doublenader 6390 | -9/Mines | Learned Materials non-interactive machine intel 6932 | -9/Mines | Discovered exit to Materials (range 7) 7112 | -9/Mines | Found a damaged Exp. Sensor Array with a note attached 7116 | -9/Mines | Found Prototype Device 7911 | -9/Mines | Entered Exiles 7956 | -9/Exiles | Met 8R-AWN 7987 | -9/Exiles | Met EX-HEX 8036 | -9/Exiles | Met EX-BIN 8055 | -9/Exiles | Aligned with FarCom system 8057 | -9/Exiles | Given EX-Vault access code 8099 | -9/Exiles | Opened EX-Vault 8140 | -9/Exiles | Warned to stay clear of 0b10 Research branches 8190 | -9/Exiles | Met EX-DEC 8198 | -9/Exiles | Learned location of Zion (-6) 8583 | -9/Exiles | Build established: Hauler-Mutant 8671 | -9/Exiles | Found Deploy-a-Sentry 8674 | -9/Exiles | Found Deploy-a-Sentry 8678 | -9/Exiles | Found Deploy-a-Sentry 8799 | -9/Exiles | DAS Turret deployed 8802 | -9/Exiles | DAS Turret deployed 8804 | -9/Exiles | DAS Turret deployed 8956 | -9/Exiles | Lost 5 parts (2u3w) 9181 | -9/Exiles | Attacked by the Exiles 9184 | -9/Exiles | Allies destroyed EX-HEX 9186 | -9/Exiles | Allies destroyed EX-BIN 9229 | -9/Exiles | Build established: Mutant 9418 | -9/Exiles | Identified Exp. Sensor Array 9433 | -9/Exiles | Found AWS/Autocannon 9436 | -9/Exiles | Found Lightpack 2.0 9700 | -9/Exiles | Build established: Hauler-Mutant 10412 | -9/Exiles | Destroyed 8R-AWN 10548 | -9/Exiles | Found Prototype Protection 10551 | -9/Exiles | Found Prototype Device 10567 | -9/Exiles | Found Prototype Processor 10747 | -9/Exiles | Discovered new exit (range 14) 10776 | -9/Exiles | Stole two prototypes: Lightpack 2.0, AWS/Autocannon 10776 | -9/Exiles | Entered Mines 10824 | -8/Mines | 99-TNT came to Exiles' defense 10852 | -8/Mines | Core integrity fell below 50% 10856 | -8/Mines | Core integrity fell below 20% 10865 | -8/Mines | Destroyed by 99-TNT with 99-TNT's Nukerbomber Last Messages --------------- 10839_ Laser Drill disabled. 10841_ The unstable cave ceiling collapses. 10843_ Imp. Treads destroyed. 10844_ The unstable cave ceiling collapses. 10847_ Humpback destroyed. 10847_ YI-UF0's Doublenader destroyed. 10848_ The unstable cave ceiling collapses. 10854_ R-06 Scavenger destroyed. 10854_ R-06 Scavenger collects Com. Wheel. 10855_ Hpw. Shotgun destroyed. 10856_ The unstable cave ceiling collapses. 10859_ Hcp. Storage Unit crushed. 10860_ The unstable cave ceiling collapses. 10861_ Hvy. Ion Engine destroyed. 10861_ Humpback destroyed. 10862_ The unstable cave ceiling collapses. 10862_ R-06 Scavenger destroyed. 10864_ The unstable cave ceiling collapses. 10864_ Plasma Cutter crushed. 10865_ The unstable cave ceiling collapses. Map ----- +----------------------------------------------------+ | ?????????????????????????????????????????????????? | | ?????????????????????????????????????????????????? | | ?????????????????????????????????????????????????? | | ?????????????????????????????????????????????????? | | ?????????????????????????????????????????????????? | | ?????????????????????????????????????????????????? | | ?????????????????????????????????????????????????? | | ?????????????????????????????????????????????????? | | ?????????????????????????????????????????????????? | | ?????????????????????????????????????????????????? | | ???????????????????????????????? ???????????????? | | ??????????????????????????????? ???????????????? | | ??????????????????????????????? ????#??????????? | | ??????????????????????????????? #??? ?????????? | | ??????????????????????????????? #?? ??????????? | | ?????????????????????#????????# ### #??????????? | | ?????????????????????#g?????## #?? ???????? | | ?????????????????????#g????? ? ??????? | | ????????????????######g###### # ## ??????? | | ????????????????# h= ??????? | | ????????????????# # ?????? | | ????????????????# # ##???? | | ????????????????# # # #???? | | ????????????????# ! ! # #???? | | ????????????????# d ] #???? | | ????????????????# @! ! # #???? | | ????????????????### ! # #???? | | ??????????????????# # #???? | | ??????????????????# # # # # ##???? | | ??????????????????#### ### ###?? ??????? | | ?????????????????????##??##########?????? ??????? | | ?????????????????????????????????????????????????? | | ?????????????????????????????????????????????????? | | ?????????????????????????????????????????????????? | | ?????????????????????????????????????????????????? | | ?????????????????????????????????????????????????? | | ?????????????????????????????????????????????????? | | ?????????????????????????????????????????????????? | | ?????????????????????????????????????????????????? | | ?????????????????????????????????????????????????? | | ?????????????????????????????????????????????????? | | ?????????????????????????????????????????????????? | | ?????????????????????????????????????????????????? | | ?????????????????????????????????????????????????? | | ?????????????????????????????????????????????????? | | ?????????????????????????????????????????????????? | | ?????????????????????????????????????????????????? | | ?????????????????????????????????????????????????? | | ?????????????????????????????????????????????????? | | ?????????????????????????????????????????????????? | +----------------------------------------------------+ Best States ------------- Heat Dissipation 54 Energy Generation 14 Energy Capacity 280 Matter Stores 689 Matter Capacity 1800 Sight Range 16 Terrain Scan Density 10 Additional Mass Support 12 Armor Coverage 675 Evasion (%) 44 Targeting Accuracy 5 Recoil Reduction 2 Item Schematics ----------------- Hcp. Storage Unit | -10/Materials | Hacked Hcp. Battery | -9/Materials | Hacked Hcp. Matter Pod | -9/Materials | Hacked Robot Schematics ------------------ None Fabricated ------------ Nothing Alien Tech Used ----------------- None Achievements -------------- None Challenges ------------ None Game ------ Seed FusionSupersonicStripper Manual? 0 Play Time 01:17:05 Cumulative 235.7 hours Start 2020.06.25 @ 08:00:13 End 2020.06.25 @ 09:17:30 Sessions 1 Manual Loads 0 Difficulty Rogue Special Mode None Game No. 307 Rogue 296 Adventurer 11 Explorer 0 Win Type - Total 0 Types 0/0/0/0/0/0/0 Lore% 53 Gallery% 67 Achievement% 46 Wizard Run 0 Options --------- ASCII 0 Keyboard 1 Movement Numpad Keybinds 0 Fullscreen 1 Font 12/Terminus Map View 83x54 Tactical HUD 1 Map Filters NONE Filters NONE Steam 1 RUN: 4b94e4cb-4428-4df8-a641-100cf57e1728